fUST/lending_fUST_20250705
["ID","MTS","AMOUNT","RATE_DAILY","PERIOD"]
[369620341,1751649038582,-460.0,0.00016986,2]
[369620342,1751649038593,-460.0,0.00016986,2]
[369620343,1751649038602,-460.0,0.00016986,2]
[369620344,1751649038612,-460.0,0.00016986,2]
[369620345,1751649038621,-581.59,0.00017,2]
[369620346,1751649038630,-500.0,0.00017104,2]
[369620347,1751649038640,-160.0,0.00017105,2]
[369620348,1751649038649,-837.48520791,0.00017105,2]
[369620349,1751649038658,-230.40116161,0.00017105,2]
[369620350,1751649038668,-160.0,0.00017105,2]
[369620351,1751649038677,-160.0,0.00017105,2]
[369620352,1751649038687,-215.11345689,0.00017105,2]
[369620353,1751649038696,-847.91215827,0.00017105,2]
[369620354,1751649038706,-213.97741257,0.00017105,2]
[369620355,1751649038715,-12578.03337979,0.00017105,2]
[369620356,1751649038725,-160.0,0.00017106,2]
[369620357,1751649038735,-172.99130014,0.0001715,2]
[369620358,1751649038744,-21342.12643911,0.0001716,2]
[369620359,1751649038759,-4004.59195489,0.0001716,2]
[369620360,1751649038771,-7323.9088978,0.0001716,2]
[369620361,1751649038783,-15846.83361807,0.0001716,2]
[369620479,1751649044801,-1500.0,0.0001716,2]
[369620484,1751649046073,-490.66197027,0.0001716,2]
[369620485,1751649046128,-1485.21455135,0.0001716,2]
[369620486,1751649046140,-10308.3323091,0.0001716,2]
[369620492,1751649215805,1000.0,0.00027,120]
[369620493,1751649217501,1000.0,0.00027,120]
[369620529,1751649989093,479.06588,0.00013699,2]
[369620559,1751650232235,-360.1203979,0.00015462,2]
[369620560,1751650232245,-1200.0,0.00015876,2]
[369620561,1751650232254,-1200.0,0.00015877,2]
[369620562,1751650232263,-300.0,0.00015877,2]
[369620563,1751650232272,-300.0,0.00015877,2]
[369620564,1751650232282,-300.0,0.00015877,2]
[369620565,1751650232292,-24900.0,0.00015878,2]
[369620566,1751650232301,-160.0,0.00016318,2]
[369620567,1751650232313,-460.0,0.00016438,2]
[369620568,1751650232323,-460.0,0.00016438,2]
[369620569,1751650232333,-460.0,0.00016438,2]
[369620570,1751650232342,-460.0,0.00016438,2]
[369620571,1751650232357,-460.0,0.00016438,2]
[369620572,1751650232367,-460.0,0.00016438,2]
[369620573,1751650232376,-500.0,0.00016438,2]
[369620574,1751650232386,-500.0,0.00016438,2]
[369620575,1751650232396,-460.0,0.00016438,2]
[369620576,1751650232405,-507.36,0.00016438,2]
[369620577,1751650232415,-460.0,0.00016438,2]
[369620578,1751650232425,-880.40146747,0.00016438,2]
[369620579,1751650232437,-533.04853253,0.00016438,2]
[369620580,1751650232446,-460.0,0.00016438,2]
[369620581,1751650232456,-460.0,0.00016438,2]
[369620582,1751650232465,-460.0,0.00016438,2]
[369620583,1751650232475,-460.0,0.00016438,2]
[369620584,1751650232484,-158.23897937,0.00016438,2]
[369620587,1751650238109,-287.20451297,0.00016438,2]
[369620588,1751650238119,-460.0,0.00016438,2]
[369620589,1751650238129,-460.0,0.00016438,2]
[369620590,1751650238138,-460.0,0.00016438,2]
[369620591,1751650238149,-9775.00395367,0.00016438,2]
[369620592,1751650238160,-6369.30235709,0.00016438,2]
[369620593,1751650238170,-531.3403211,0.00016524,2]
[369620594,1751650238180,-317.91250367,0.00016712,2]
[369620595,1751650238191,-460.0,0.00016712,2]
[369620596,1751650238202,-460.0,0.00016712,2]
[369620597,1751650238212,-460.0,0.00016712,2]
[369620598,1751650238224,-460.0,0.00016712,2]
[369620599,1751650238234,-411.25761306,0.00016712,2]
[369620600,1751650238244,-507.36,0.00016712,2]
[369620601,1751650238254,-460.0,0.00016712,2]
[369620602,1751650238264,-1413.45,0.00016712,2]
[369620603,1751650238274,-462.72367711,0.00016712,2]
[369620604,1751650238283,-460.0,0.00016712,2]
[369620605,1751650238293,-460.0,0.00016712,2]
[369620606,1751650238303,-15.69186329,0.00016712,2]
[369620607,1751650238321,-444.30813671,0.00016712,2]
[369620608,1751650238330,-460.0,0.00016712,2]
[369620610,1751650238339,-460.0,0.00016712,2]
[369620612,1751650238350,-460.0,0.00016712,2]
[369620614,1751650238360,-2845.86825522,0.00016744,2]
[369620616,1751650238371,-6473.55414975,0.00016886,2]
[369620617,1751650238381,-500.0,0.000169,2]
[369620618,1751650238391,-600.0,0.00016985,2]
[369620619,1751650238401,-500.0,0.00016985,2]
[369620620,1751650238410,-495.38449093,0.00016985,2]
[369620621,1751650238421,-242.15518566,0.00016985,2]
[369620622,1751650238431,-420.06253375,0.00016985,2]
[369620623,1751650238441,-500.0,0.00016985,2]
[369620624,1751650238451,-500.0,0.00016985,2]
[369620625,1751650238461,-401.88421869,0.00016985,2]
[369620626,1751650238471,-460.0,0.00016986,2]
[369620627,1751650238481,-460.0,0.00016986,2]
[369620628,1751650238491,-460.0,0.00016986,2]
[369620629,1751650238501,-460.0,0.00016986,2]
[369620630,1751650238511,-507.36,0.00016986,2]
[369620631,1751650238522,-460.0,0.00016986,2]
[369620632,1751650238532,-1413.45,0.00016986,2]
[369620633,1751650238542,-460.0,0.00016986,2]
[369620634,1751650238551,-460.0,0.00016986,2]
[369620635,1751650238560,-460.0,0.00016986,2]
[369620636,1751650238570,-460.0,0.00016986,2]
[369620637,1751650238580,-460.0,0.00016986,2]
[369620638,1751650238589,-460.0,0.00016986,2]
[369620639,1751650238598,-837.48520791,0.00017108,2]
[369620640,1751650238608,-230.40116161,0.00017108,2]
[369620641,1751650238617,-160.0,0.00017108,2]
[369620642,1751650238627,-847.91215827,0.00017108,2]
[369620643,1751650238636,-160.0,0.00017108,2]
[369620644,1751650238648,-215.11345689,0.00017108,2]
[369620645,1751650238657,-213.97741257,0.00017108,2]
[369620646,1751650238666,-500.0,0.00017174,2]
[369620647,1751650238675,-523.43,0.000172,2]
[369620648,1751650238685,-460.0,0.0001726,2]
[369620649,1751650238694,-460.0,0.0001726,2]
[369620650,1751650238704,-460.0,0.0001726,2]
[369620651,1751650238713,-460.0,0.0001726,2]
[369620652,1751650238722,-507.36,0.0001726,2]
[369620653,1751650238731,-460.0,0.0001726,2]
[369620654,1751650238741,-1413.45,0.0001726,2]
[369620655,1751650238750,-460.0,0.0001726,2]
[369620656,1751650238759,-460.0,0.0001726,2]
[369620657,1751650238768,-460.0,0.0001726,2]
[369620658,1751650238777,-460.0,0.0001726,2]
[369620659,1751650238786,-460.0,0.0001726,2]
[369620660,1751650238795,-460.0,0.0001726,2]
[369620661,1751650238805,-420.0,0.00017361,2]
[369620662,1751650238814,-172.99130014,0.00017466,2]
[369620663,1751650238823,-460.0,0.00017534,2]
[369620664,1751650238832,-460.0,0.00017534,2]
[369620665,1751650238841,-460.0,0.00017534,2]
[369620666,1751650238851,-460.0,0.00017534,2]
[369620667,1751650238860,-507.36,0.00017534,2]
[369620668,1751650238870,-460.0,0.00017534,2]
[369620669,1751650238880,-1413.45,0.00017534,2]
[369620670,1751650238888,-460.0,0.00017534,2]
[369620671,1751650238897,-460.0,0.00017534,2]
[369620672,1751650238906,-460.0,0.00017534,2]
[369620673,1751650238915,-460.0,0.00017534,2]
[369620674,1751650238924,-460.0,0.00017534,2]
[369620675,1751650238934,-460.0,0.00017534,2]
[369620676,1751650238943,-12050.94429426,0.00017555,2]
[369620677,1751650238952,-310.0,0.00017566,2]
[369620678,1751650238962,-310.0,0.00017636,2]
[369620679,1751650238971,-310.0,0.00017701,2]
[369620680,1751650238981,-250.53,0.0001779,3]
[369620681,1751650238990,-751.62,0.0001779,3]
[369620682,1751650238999,-1192.72515978,0.000178,2]
[369620683,1751650239008,-1224.24325959,0.000178,2]
[369620684,1751650239017,-22869.47412228,0.000178,2]
[369620685,1751650239030,-5333.37075141,0.000178,2]
[369620686,1751650239042,-10937.4068957,0.000178,2]
[369621032,1751650243390,-460.0,0.00016438,2]
[369621033,1751650243400,-460.0,0.00016712,2]
[369621035,1751650243421,-80.0,0.000169,2]
[369621039,1751650243446,-2294.69140764,0.000169,2]
[369621041,1751650243456,-460.0,0.00016986,2]
[369621042,1751650243466,-524.86301716,0.00017108,2]
[369621043,1751650243477,-2374.69140758,0.00017176,2]
[369621044,1751650243488,-460.0,0.0001726,2]
[369621045,1751650243499,-2374.69140758,0.00017452,2]
[369621046,1751650243508,-460.0,0.00017534,2]
[369621047,1751650243519,-1771.52779572,0.00017728,2]
[369621054,1751651036838,455.112586,0.00013699,2]
[369621065,1751651390182,-257.63913128,0.00015052,2]
[369621066,1751651391822,-249.54547184,0.00015052,2]
[369621067,1751651396800,-119.76805457,0.00015052,2]
[369621068,1751651396823,-45.78901951,0.00015052,2]
[369621069,1751651399000,-208.33229475,0.00015052,2]
[369621070,1751651403739,-211.8256299,0.00015052,2]
[369621071,1751651409853,-227.30376794,0.00015052,2]
[369621072,1751651413336,-193.85848321,0.00015052,2]
[369621073,1751651416139,-336.52743278,0.00015052,2]
[369621075,1751651423325,-221.3810714,0.00015052,2]
[369621076,1751651425715,-236.54220499,0.00015052,2]
[369621077,1751651431124,-319.63913175,0.00015052,2]
[369621109,1751651432523,-504.1037839,0.00015052,2]
[369621111,1751651432533,-172.9670094,0.00016198,2]
[369621114,1751651432544,-156.03802696,0.00016338,2]
[369621115,1751651432553,-149.8744237,0.00016362,2]
[369621119,1751651432576,-150.1255763,0.00016362,2]
[369621121,1751651432586,-1638.04910056,0.00016363,2]
[369621125,1751651432632,-402.67135502,0.00016363,2]
[369621128,1751651432645,-22859.27954442,0.00016363,2]
[369621129,1751651432654,-460.0,0.00016438,2]
[369621131,1751651432663,-285.97756896,0.00016438,2]
[369621134,1751651432673,-460.0,0.00016438,2]
[369621137,1751651432683,-460.0,0.00016438,2]
[369621139,1751651432692,-460.0,0.00016438,2]
[369621141,1751651432702,-460.0,0.00016438,2]
[369621143,1751651432711,-189.39363616,0.00016438,2]
[369621145,1751651432721,-460.0,0.00016438,2]
[369621147,1751651432730,-460.0,0.00016438,2]
[369621149,1751651432739,-219.09613479,0.00016438,2]
[369621151,1751651432752,-1118.98,0.00016438,2]
[369621153,1751651432761,-460.0,0.00016438,2]
[369621155,1751651432771,-460.0,0.00016438,2]
[369621157,1751651432780,-460.0,0.00016712,2]
[369621159,1751651432791,-460.0,0.00016712,2]
[369621161,1751651432800,-460.0,0.00016712,2]
[369621163,1751651432809,-460.0,0.00016712,2]
[369621165,1751651432819,-460.0,0.00016712,2]
[369621166,1751651432829,-460.0,0.00016712,2]
[369621167,1751651432838,-460.0,0.00016712,2]
[369621168,1751651432848,-1118.98,0.00016712,2]
[369621169,1751651432858,-460.0,0.00016712,2]
[369621170,1751651432867,-460.0,0.00016712,2]
[369621171,1751651432877,-292.94943054,0.00016946,2]
[369621172,1751651432886,-460.0,0.00016986,2]
[369621173,1751651432896,-460.0,0.00016986,2]
[369621174,1751651432905,-460.0,0.00016986,2]
[369621175,1751651432914,-460.0,0.00016986,2]
[369621176,1751651432924,-460.0,0.00016986,2]
[369621177,1751651432933,-460.0,0.00016986,2]
[369621178,1751651432943,-460.0,0.00016986,2]
[369621179,1751651432953,-1118.98,0.00016986,2]
[369621180,1751651432962,-460.0,0.00016986,2]
[369621181,1751651432972,-460.0,0.00016986,2]
[369621182,1751651432981,-460.0,0.00017107,2]
[369621183,1751651432990,-460.0,0.00017107,2]
[369621184,1751651432999,-160.0,0.00017115,2]
[369621185,1751651433009,-230.40116161,0.00017115,2]
[369621186,1751651433019,-847.91215827,0.00017115,2]
[369621187,1751651433028,-160.0,0.00017115,2]
[369621188,1751651433038,-215.11345689,0.00017115,2]
[369621189,1751651433047,-213.97741257,0.00017115,2]
[369621190,1751651433057,-837.48520791,0.00017115,2]
[369621191,1751651433066,-151.0,0.0001726,2]
[369621192,1751651433076,-151.0,0.0001726,2]
[369621193,1751651433085,-500.0,0.0001726,2]
[369621194,1751651433095,-151.0,0.0001726,2]
[369621195,1751651433105,-151.0,0.0001726,2]
[369621196,1751651433115,-151.0,0.0001726,2]
[369621197,1751651433125,-5.11635114,0.0001726,2]
[369621198,1751651433138,-145.88364886,0.0001726,2]
[369621199,1751651433147,-500.0,0.0001726,2]
[369621200,1751651433157,-152.36259293,0.0001726,2]
[369621201,1751651433166,-152.83566428,0.0001726,2]
[369621202,1751651433175,-198.0,0.0001726,2]
[369621203,1751651433185,-151.0,0.0001726,2]
[369621205,1751651433194,-151.0,0.0001726,2]
[369621207,1751651433203,-151.0,0.0001726,2]
[369621209,1751651433213,-367.8896204,0.0001726,2]
[369621211,1751651433223,-460.0,0.0001726,2]
[369621212,1751651433232,-460.0,0.0001726,2]
[369621214,1751651433241,-490.01043945,0.0001726,2]
[369621216,1751651433251,-500.0,0.0001726,2]
[369621217,1751651433260,-500.0,0.0001726,2]
[369621218,1751651433269,-460.0,0.0001726,2]
[369621219,1751651433279,-500.0,0.0001726,2]
[369621220,1751651433288,-151.0,0.0001726,2]
[369621222,1751651433297,-151.0,0.0001726,2]
[369621223,1751651433307,-151.0,0.0001726,2]
[369621224,1751651433318,-151.0,0.0001726,2]
[369621225,1751651433327,-500.0,0.0001726,2]
[369621226,1751651433337,-190.02162087,0.0001726,2]
[369621227,1751651433347,-151.0,0.0001726,2]
[369621228,1751651433356,-460.0,0.0001726,2]
[369621229,1751651433366,-460.0,0.0001726,2]
[369621230,1751651433375,-151.0,0.0001726,2]
[369621231,1751651433385,-1118.98,0.0001726,2]
[369621232,1751651433394,-455.30052967,0.0001726,2]
[369621233,1751651433403,-460.0,0.0001726,2]
[369621234,1751651433417,-151.0,0.00017287,2]
[369621235,1751651433430,-151.0,0.00017287,2]
[369621236,1751651433442,-500.0,0.00017287,2]
[369621237,1751651433454,-151.0,0.00017287,2]
[369621238,1751651433467,-151.0,0.00017287,2]
[369621239,1751651433478,-230.46578051,0.00017287,2]
[369621240,1751651433489,-151.0,0.00017287,2]
[369621241,1751651433499,-500.0,0.00017287,2]
[369621242,1751651433511,-151.0,0.00017287,2]
[369621243,1751651433523,-500.0,0.00017287,2]
[369621244,1751651433535,-151.0,0.00017287,2]
[369621245,1751651433546,-151.0,0.00017287,2]
[369621246,1751651433558,-292.0,0.00017287,2]
[369621247,1751651433570,-500.0,0.00017287,2]
[369621248,1751651433582,-151.0,0.00017287,2]
[369621249,1751651433594,-151.0,0.00017287,2]
[369621250,1751651433606,-471.09,0.000173,2]
[369621251,1751651433617,-199.19616753,0.00017315,2]
[369621252,1751651433631,-151.0,0.00017315,2]
[369621253,1751651433642,-359.0,0.00017315,2]
[369621254,1751651433653,-151.0,0.00017315,2]
[369621255,1751651433666,-217.95655386,0.00017315,2]
[369621256,1751651433678,-151.0,0.00017315,2]
[369621257,1751651433690,-500.0,0.00017315,2]
[369621258,1751651433701,-298.68294943,0.00017315,2]
[369621259,1751651433712,-500.0,0.00017315,2]
[369621260,1751651433724,-246.8883299,0.00017315,2]
[369621261,1751651433736,-279.6042664,0.00017315,2]
[369621262,1751651433750,-500.0,0.00017315,2]
[369621263,1751651433762,-151.0,0.00017315,2]
[369621264,1751651433774,-151.0,0.00017315,2]
[369621265,1751651433787,-212.98735537,0.00017342,2]
[369621266,1751651433800,-161.00021201,0.00017342,2]
[369621267,1751651433810,-151.0,0.00017342,2]
[369621268,1751651433820,-500.0,0.00017342,2]
[369621269,1751651433832,-500.0,0.00017342,2]
[369621270,1751651433846,-500.0,0.00017342,2]
[369621271,1751651433856,-151.0,0.00017342,2]
[369621272,1751651433868,-198.0,0.0001737,2]
[369621273,1751651433880,-292.0,0.0001737,2]
[369621274,1751651433892,-460.0,0.00017381,2]
[369621275,1751651433904,-533.81085941,0.00017381,2]
[369621276,1751651433916,-458.162457,0.00017451,2]
[369621277,1751651433928,-156.03802694,0.00017479,2]
[369621278,1751651433939,-460.0,0.00017534,2]
[369621279,1751651433952,-460.0,0.00017534,2]
[369621280,1751651433964,-460.0,0.00017534,2]
[369621281,1751651433976,-460.0,0.00017534,2]
[369621282,1751651433988,-460.0,0.00017534,2]
[369621283,1751651433999,-791.31141487,0.00017534,2]
[369621303,1751651438408,-327.66858513,0.00017534,2]
[369621304,1751651438420,-460.0,0.00017534,2]
[369621305,1751651438430,-460.0,0.00017655,2]
[369621306,1751651438440,-211.32046874,0.00017799,2]
[369621307,1751651438450,-249.54547184,0.00017799,2]
[369621308,1751651438461,-97.87678662,0.000178,2]
[369621309,1751651438473,-730.9799992,0.000178,2]
[369621311,1751651438487,-14537.63463998,0.000178,2]
[369621314,1751651438510,-233.77957853,0.000178,2]
[369621317,1751651438524,-460.0,0.00017808,2]
[369621319,1751651438536,-460.0,0.00017808,2]
[369621321,1751651438551,-460.0,0.00017808,2]
[369621324,1751651438563,-460.0,0.00017808,2]
[369621326,1751651438576,-1118.98,0.00017808,2]
[369621328,1751651438589,-460.0,0.00017808,2]
[369621330,1751651438601,-310.0,0.00017844,2]
[369621333,1751651438613,-959.933,0.00017868,2]
[369621335,1751651438625,-2152.0,0.00017868,2]
[369621337,1751651438637,-646.0,0.00017868,2]
[369621339,1751651438649,-168.0,0.00017871,2]
[369621342,1751651438661,-150.0,0.00017879,2]
[369621344,1751651438673,-420.0,0.00017883,2]
[369621346,1751651438684,-327.0,0.00017884,2]
[369621348,1751651438696,-2102.20689458,0.000179,2]
[369621350,1751651438708,-327.0,0.00017906,2]
[369621352,1751651438719,-168.0,0.00017913,2]
[369621354,1751651438731,-327.0,0.00017983,2]
[369621357,1751651438742,-327.0,0.00018034,2]
[369621359,1751651438756,-250.0,0.00018066,2]
[369621361,1751651438767,-460.0,0.00018082,2]
[369621363,1751651438777,-460.0,0.00018082,2]
[369621365,1751651438788,-460.0,0.00018082,2]
[369621367,1751651438800,-460.0,0.00018082,2]
[369621369,1751651438811,-1118.98,0.00018082,2]
[369621371,1751651438822,-460.0,0.00018082,2]
[369621373,1751651438834,-1217.24301973,0.000181,2]
[369621374,1751651438844,-2200.0,0.00018102,2]
[369621376,1751651438856,-151.0,0.0001813,2]
[369621378,1751651438866,-151.0,0.00018141,2]
[369621379,1751651438877,-151.0,0.00018141,2]
[369621380,1751651438887,-151.0,0.00018141,2]
[369621381,1751651438898,-151.0,0.00018141,2]
[369621382,1751651438909,-406.594405,0.00018141,2]
[369621383,1751651438920,-406.594405,0.00018141,2]
[369621384,1751651438931,-151.0,0.00018141,2]
[369621386,1751651438942,-151.0,0.00018141,2]
[369621387,1751651438953,-151.0,0.00018141,2]
[369621388,1751651438964,-2102.20689457,0.00018141,2]
[369621389,1751651438975,-250.0,0.00018149,2]
[369621390,1751651438986,-4434.0,0.000182,2]
[369621391,1751651438996,-354.244961,0.000182,2]
[369621392,1751651439007,-354.244961,0.000182,2]
[369621393,1751651439018,-151.0,0.000182,2]
[369621394,1751651439028,-151.0,0.000182,2]
[369621395,1751651439039,-243.074708,0.000182,2]
[369621396,1751651439050,-243.074708,0.000182,2]
[369621397,1751651439061,-151.0,0.000182,2]
[369621398,1751651439071,-501.06,0.0001822,3]
[369621399,1751651439082,-596.36257989,0.00018229,2]
[369621400,1751651439097,-306.81036741,0.00018229,2]
[369621401,1751651439113,-305.31126238,0.00018229,2]
[369621402,1751651439124,-207.4,0.0001823,2]
[369621403,1751651439136,-690.642,0.0001823,2]
[369621404,1751651439148,-94.53587137,0.0001823,2]
[369621405,1751651439162,-275.32868555,0.0001823,2]
[369621406,1751651439176,-3184.2600008,0.0001823,2]
[369621407,1751651439191,-534.94906441,0.0001823,2]
[369621408,1751651439206,-708.43795877,0.0001823,2]
[369621409,1751651439220,-202.4884191,0.0001823,2]
[369621410,1751651439231,-813.52174997,0.0001823,2]
[369621411,1751651439244,-3.53682078,0.0001823,2]
[369621412,1751651439257,-147.46317922,0.0001823,2]
[369621413,1751651439267,-151.0,0.0001823,2]
[369621414,1751651439276,-151.0,0.0001823,2]
[369621415,1751651439285,-151.0,0.0001823,2]
[369621416,1751651439294,-151.0,0.0001823,2]
[369621417,1751651439304,-151.0,0.0001823,2]
[369621419,1751651439522,-151.0,0.0001823,2]
[369621420,1751651439534,-151.0,0.0001823,2]
[369621421,1751651439544,-44.58688728,0.0001823,2]
[369621422,1751651439555,-255.41311272,0.0001823,2]
[369621423,1751651439565,-293.18842781,0.0001823,2]
[369621424,1751651439574,-265.02550872,0.0001823,2]
[369621479,1751651440886,-0.00369217,0.0001823,2]
[369621645,1751651443629,-34.97079911,0.0001823,2]
[369621646,1751651443639,-500.0,0.0001823,2]
[369621647,1751651443649,-186.09582906,0.0001823,2]
[369621656,1751651446462,-211.32980603,0.00017434,2]
[369621657,1751651446471,-113.90417094,0.0001823,2]
[369621658,1751651446481,-500.0,0.0001823,2]
[369621659,1751651446491,-151.0,0.0001823,2]
[369621660,1751651446500,-300.0,0.0001823,2]
[369621661,1751651446509,-260.37307572,0.0001823,2]
[369621674,1751652048659,446.244466,0.00013699,2]
[369621754,1751652632618,-300.0,0.00015468,2]
[369621756,1751652632628,-273.0,0.00015468,2]
[369621758,1751652632638,-1558.34,0.00015469,2]
[369621763,1751652632670,-23341.66,0.00015469,2]
[369621765,1751652632679,-477.10784315,0.00016338,2]
[369621767,1751652632688,-460.0,0.00016438,2]
[369621768,1751652632698,-460.0,0.00016438,2]
[369621770,1751652632707,-460.84806076,0.00016438,2]
[369621772,1751652632717,-460.0,0.00016438,2]
[369621773,1751652632727,-460.0,0.00016438,2]
[369621775,1751652632736,-460.0,0.00016438,2]
[369621777,1751652632745,-460.0,0.00016438,2]
[369621779,1751652632755,-460.0,0.00016438,2]
[369621781,1751652632764,-460.0,0.00016438,2]
[369621783,1751652632773,-460.0,0.00016438,2]
[369621784,1751652632782,-460.0,0.00016438,2]
[369621787,1751652632792,-460.0,0.00016438,2]
[369621788,1751652632802,-460.0,0.00016438,2]
[369621791,1751652632811,-460.0,0.00016438,2]
[369621792,1751652632820,-460.0,0.00016438,2]
[369621794,1751652632830,-460.4408617,0.00016438,2]
[369621796,1751652632840,-460.0,0.00016438,2]
[369621798,1751652632849,-460.0,0.00016438,2]
[369621799,1751652632858,-460.0,0.00016438,2]
[369621800,1751652632868,-460.0,0.00016438,2]
[369621801,1751652632878,-460.0,0.00016438,2]
[369621802,1751652632887,-460.0,0.00016438,2]
[369621804,1751652632896,-460.0,0.00016438,2]
[369621805,1751652632906,-425.76,0.00016438,2]
[369621806,1751652632915,-460.0,0.00016438,2]
[369621807,1751652632925,-460.0,0.00016438,2]
[369621808,1751652632934,-460.0,0.00016438,2]
[369621809,1751652632944,-460.0,0.00016438,2]
[369621810,1751652632953,-460.0,0.00016438,2]
[369621811,1751652632963,-460.0,0.00016438,2]
[369621812,1751652632972,-460.0,0.00016438,2]
[369621813,1751652632982,-460.0,0.00016438,2]
[369621815,1751652632991,-460.0,0.00016438,2]
[369621817,1751652633001,-460.0,0.00016438,2]
[369621819,1751652633011,-460.0,0.00016438,2]
[369621821,1751652633020,-460.0,0.00016438,2]
[369621823,1751652633030,-500.0,0.00016438,2]
[369621825,1751652633039,-460.0,0.00016438,2]
[369621845,1751652633229,-154.19497099,0.00016438,2]
[369621848,1751652633248,-509.88,0.00016438,2]
[369621849,1751652633259,-460.0,0.00016438,2]
[369621850,1751652633269,-491.4,0.00016438,2]
[369621851,1751652633279,-460.0,0.00016438,2]
[369621852,1751652633289,-819.88,0.00016438,2]
[369621853,1751652633299,-460.0,0.00016438,2]
[369621854,1751652633309,-460.0,0.00016438,2]
[369621855,1751652633319,-460.0,0.00016438,2]
[369621856,1751652633329,-460.0,0.00016438,2]
[369621857,1751652633339,-214.1522544,0.00016438,2]
[369621858,1751652633349,-460.0,0.00016438,2]
[369621859,1751652633359,-460.0,0.00016438,2]
[369621860,1751652633368,-460.0,0.00016438,2]
[369621861,1751652633379,-460.0,0.00016438,2]
[369621862,1751652633390,-460.0,0.00016438,2]
[369621863,1751652633399,-460.0,0.00016438,2]
[369621864,1751652633410,-460.0,0.00016438,2]
[369621865,1751652633421,-460.0,0.00016438,2]
[369621866,1751652633430,-460.0,0.00016438,2]
[369621867,1751652633439,-460.0,0.00016438,2]
[369621868,1751652633449,-733.1,0.00016438,2]
[369621869,1751652633459,-636.62,0.00016438,2]
[369621870,1751652633468,-460.0,0.00016438,2]
[369621871,1751652633477,-460.0,0.00016438,2]
[369621872,1751652633487,-460.0,0.00016438,2]
[369621873,1751652633496,-676.43,0.00016438,2]
[369621874,1751652633507,-460.0,0.00016438,2]
[369621875,1751652633516,-460.0,0.00016438,2]
[369621876,1751652633526,-82.55961359,0.00016438,2]
[369621918,1751652638626,-377.44038641,0.00016438,2]
[369621919,1751652638637,-460.0,0.00016438,2]
[369621920,1751652638646,-460.0,0.00016438,2]
[369621921,1751652638656,-460.0,0.00016438,2]
[369621922,1751652638665,-460.0,0.00016438,2]
[369621923,1751652638674,-1476.33,0.00016438,2]
[369621924,1751652638683,-460.0,0.00016438,2]
[369621925,1751652638693,-508.76346539,0.00016438,2]
[369621926,1751652638702,-460.0,0.00016438,2]
[369621927,1751652638712,-460.0,0.00016438,2]
[369621928,1751652638721,-460.0,0.00016438,2]
[369621929,1751652638731,-460.0,0.00016438,2]
[369621930,1751652638740,-460.0,0.00016438,2]
[369621931,1751652638750,-460.0,0.00016438,2]
[369621932,1751652638759,-320.79,0.00016438,2]
[369621933,1751652638769,-460.0,0.00016438,2]
[369621934,1751652638778,-460.0,0.00016438,2]
[369621936,1751652638787,-460.0,0.00016438,2]
[369621937,1751652638798,-574.29,0.00016438,2]
[369621938,1751652638807,-460.0,0.00016438,2]
[369621939,1751652638816,-460.0,0.00016438,2]
[369621940,1751652638825,-460.0,0.00016438,2]